bitfinex/quotes_BTCUSD_20250826
["timestamp","ask_amount","ask_price","bid_price","bid_amount"]
[1756170140185,0.18631408,109150.0,109140.0,0.00018311]
[1756170140421,0.00308,109150.0,109140.0,0.18343398]
[1756170140629,0.00408,109150.0,109140.0,0.41374414]
[1756170141369,0.001,109150.0,109140.0,0.41374414]
[1756170142084,0.001,109150.0,109140.0,0.59313518]
[1756170142272,0.001,109150.0,109140.0,0.39949518]
[1756170142509,0.001,109150.0,109140.0,0.59281518]
[1756170143358,0.00308,109150.0,109140.0,0.39949518]
[1756170143566,0.00308,109150.0,109140.0,0.59301518]
[1756170143783,0.18628135,109170.0,109150.0,0.18323197]
[1756170143989,0.18320135,109170.0,109150.0,0.18323197]
[1756170144196,0.00308,109160.0,109150.0,0.18323197]
[1756170144582,0.00880554,109160.0,109150.0,0.18323197]
[1756170145137,0.00880554,109160.0,109150.0,0.37647197]
[1756170145340,0.00572554,109160.0,109150.0,0.37647197]
[1756170145571,0.005725,109170.0,109160.0,0.18321729]
[1756170145789,0.19210551,109170.0,109160.0,0.18321729]
[1756170145989,0.18638051,109170.0,109150.0,0.45095792]
[1756170146190,0.18639729,109160.0,109140.0,0.25391398]
[1756170146395,0.19236053,109170.0,109150.0,0.18323408]
[1756170146593,0.93626471,109180.0,109160.0,0.18321729]
[1756170146852,1.26710553,109180.0,109170.0,0.18320051]
[1756170147072,0.18638051,109170.0,109160.0,0.18321729]
[1756170147717,0.18321729,109160.0,109140.0,0.25391398]
[1756170147935,0.73701461,109150.0,109140.0,0.00018311]
[1756170148358,0.18641408,109150.0,109140.0,0.00018311]
[1756170148987,1.07701461,109150.0,109140.0,0.00018311]
[1756170149860,0.52641408,109150.0,109140.0,0.00018311]
[1756170150073,1.1684599,109150.0,109140.0,0.00018311]
[1756170150295,1.1684599,109150.0,109140.0,0.00118311]
[1756170150518,1.1704199,109150.0,109140.0,0.00018311]
[1756170150742,1.07897461,109150.0,109140.0,0.00018311]
[1756170150970,0.53137408,109150.0,109140.0,0.00018311]
[1756170151180,1.07897461,109150.0,109140.0,0.00018311]
[1756170151603,1.08297461,109150.0,109140.0,0.00018311]
[1756170151819,4.33694461,109150.0,109140.0,0.00018311]
[1756170152027,4.36210922,109150.0,109140.0,0.00018311]
[1756170152692,0.73915327,109150.0,109140.0,0.00018311]
[1756170152904,1.27037461,109150.0,109140.0,0.00018311]
[1756170153172,1.29275965,109150.0,109140.0,0.00018311]
[1756170153394,0.55075912,109150.0,109140.0,0.00018311]
[1756170153594,0.72265408,109150.0,109140.0,0.00018311]
[1756170153803,1.27325461,109150.0,109140.0,0.00018311]
[1756170154224,0.19137408,109150.0,109140.0,0.00018311]
[1756170154456,0.19128,109150.0,109140.0,0.00018311]
[1756170154666,0.37435408,109150.0,109140.0,0.00018311]
[1756170155066,0.37631408,109150.0,109140.0,0.00018311]
[1756170155272,0.93009461,109150.0,109140.0,0.00018311]
[1756170155486,1.3615399,109150.0,109140.0,0.00018311]
[1756170155910,4.5195099,109150.0,109140.0,0.00018311]
[1756170156135,0.73388498,109120.0,109110.0,0.04136023]
[1756170156338,1.33712498,109120.0,109110.0,8e-05]
[1756170156560,1.16889821,109120.0,109110.0,8e-05]
[1756170156772,0.80901768,109120.0,109110.0,8e-05]
[1756170157023,1.34937697,109120.0,109110.0,8e-05]
[1756170157438,1.41631415,109120.0,109110.0,8e-05]
[1756170157651,1.41631415,109120.0,109110.0,0.00408]
[1756170158493,1.22559415,109120.0,109110.0,0.00408]
[1756170158707,1.41583415,109120.0,109110.0,0.00408]
[1756170159122,4.57380415,109120.0,109110.0,0.00408]
[1756170159341,4.74318372,109120.0,109110.0,0.00408]
[1756170159960,4.74318372,109120.0,109110.0,8e-05]
[1756170160168,4.59318372,109120.0,109110.0,8e-05]
[1756170160385,4.6173794,109120.0,109110.0,8e-05]
[1756170160624,4.59318372,109120.0,109110.0,8e-05]
[1756170160887,4.59318372,109120.0,109060.0,0.18338529]
[1756170160888,0.18337543,109070.0,109060.0,0.18338529]
[1756170161114,0.38246279,109080.0,109060.0,0.18538529]
[1756170161333,0.2538474,109090.0,109070.0,0.18648847]
[1756170161544,0.3731274,109090.0,109070.0,0.18648847]
[1756170161728,0.01434662,109080.0,109070.0,0.18648847]
[1756170161960,0.01434662,109080.0,109070.0,0.18848847]
[1756170162164,0.19769828,109080.0,109070.0,0.18848847]
[1756170162375,0.19784174,109080.0,109070.0,0.18536847]
[1756170162848,0.18349512,109080.0,109070.0,0.18536847]
[1756170163066,0.18349512,109080.0,109070.0,0.18936847]
[1756170163299,0.18338494,109070.0,109060.0,0.04036939]
[1756170163515,0.18338494,109070.0,109060.0,0.22575468]
[1756170163717,0.18336847,109070.0,109060.0,0.18538529]
[1756170164138,0.18336847,109070.0,109060.0,0.002]
[1756170164342,0.1926627,109080.0,109060.0,0.18538529]
[1756170164553,0.1926627,109080.0,109060.0,0.18850529]
[1756170164554,0.18349512,109080.0,109060.0,0.18850529]
[1756170164970,0.18909873,109070.0,109060.0,0.18538529]
[1756170165175,0.18978346,109080.0,109070.0,0.18336847]
[1756170165389,0.18349512,109080.0,109070.0,0.18536847]
[1756170165592,0.00014346,109080.0,109070.0,0.18848847]
[1756170165808,0.00587318,109080.0,109070.0,0.18848847]
[1756170166008,0.18922484,109080.0,109070.0,0.002]
[1756170166211,0.18349512,109080.0,109070.0,0.18536847]
[1756170166427,0.01448888,109080.0,109070.0,0.18536847]
[1756170166635,0.01448888,109080.0,109070.0,0.22866385]
[1756170166834,0.0202186,109080.0,109070.0,0.22866385]
[1756170167060,0.0202186,109080.0,109070.0,0.19148847]
[1756170167290,0.01448888,109080.0,109070.0,0.19148847]
[1756170167600,0.20357026,109080.0,109070.0,0.18836847]
[1756170167781,0.01448888,109080.0,109070.0,0.19148847]
[1756170168013,0.01448888,109080.0,109070.0,0.25205652]
[1756170168262,0.01448888,109080.0,109070.0,0.19148847]
[1756170169218,0.01448888,109080.0,109070.0,0.18848847]
[1756170169650,0.01448888,109080.0,109070.0,0.19248847]
[1756170169872,0.01448888,109080.0,109070.0,0.85200004]
[1756170170105,0.01448888,109080.0,109070.0,0.3928448]
[1756170170365,0.00014346,109080.0,109070.0,0.94344533]
[1756170170614,0.07052,109130.0,109120.0,0.18328445]
[1756170170859,0.1833013,109110.0,109090.0,0.27127648]
[1756170171136,0.19764235,109110.0,109090.0,0.25382746]
[1756170171375,0.1864813,109110.0,109090.0,0.18333486]
[1756170171610,0.19764304,109110.0,109090.0,0.18333486]
[1756170171848,0.18331805,109100.0,109090.0,0.18333486]
[1756170172090,0.19764304,109110.0,109090.0,0.18333486]
[1756170172340,0.19764304,109110.0,109100.0,0.18331805]
[1756170172574,0.20278304,109110.0,109090.0,0.18333486]
[1756170172813,0.01434179,109110.0,109100.0,0.18331805]
[1756170173287,0.2053712,109110.0,109090.0,0.18645486]
[1756170173580,0.01634179,109110.0,109100.0,0.18331805]
[1756170173820,0.01920587,109110.0,109100.0,0.18843805]
[1756170174038,0.02206995,109110.0,109100.0,0.18843805]
[1756170174246,0.19263965,109130.0,109110.0,0.18329235]
[1756170174469,0.00572762,109120.0,109110.0,0.18329235]
[1756170174694,0.18330125,109110.0,109100.0,0.22400241]
[1756170174905,0.18330125,109110.0,109100.0,0.04068906]
[1756170175297,0.18330125,109110.0,109090.0,0.37197486]
[1756170175501,0.18331805,109100.0,109090.0,0.18333486]
[1756170175851,0.18333486,109090.0,109070.0,0.25388847]
[1756170176098,0.18333486,109090.0,109070.0,0.18336847]
[1756170176513,0.18908138,109080.0,109060.0,0.18645529]
[1756170176710,0.18335166,109080.0,109060.0,0.46611731]
[1756170176897,0.18335166,109080.0,109060.0,0.54636026]
[1756170177101,0.18335166,109080.0,109060.0,0.54683924]
[1756170177320,0.38068395,109100.0,109080.0,0.18335166]
[1756170177523,0.18906406,109090.0,109070.0,0.18336847]
[1756170177720,0.18335166,109080.0,109070.0,0.18336847]
[1756170177932,0.18642486,109090.0,109070.0,0.18336847]
[1756170178549,0.18536166,109080.0,109070.0,0.18336847]
[1756170178979,0.18336847,109070.0,109060.0,0.22768767]
[1756170179155,0.18336847,109070.0,109060.0,0.04230238]
[1756170179864,0.19771506,109070.0,109060.0,0.04230238]
[1756170180689,0.19771506,109070.0,109060.0,0.04430238]
[1756170181108,0.19771506,109070.0,109060.0,0.22768767]
[1756170181308,0.01434659,109070.0,109060.0,0.22967767]
[1756170181487,0.01434659,109070.0,109060.0,0.23274767]
[1756170181965,0.01434659,109070.0,109060.0,0.23074767]
[1756170182370,0.01434659,109070.0,109060.0,0.23174767]
[1756170183266,0.00096673,109080.0,109070.0,0.18336847]
[1756170183484,0.00669645,109080.0,109070.0,0.37235847]
[1756170183721,0.00096673,109080.0,109070.0,1.03494004]
[1756170184990,0.00326932,109090.0,109080.0,0.18335166]
[1756170185202,0.00326932,109090.0,109080.0,0.34732368]
[1756170185405,0.00326932,109090.0,109080.0,0.53715368]
[1756170185624,0.00326932,109090.0,109080.0,0.6109508]
[1756170185825,0.00326932,109090.0,109080.0,0.62839982]
[1756170185962,0.00326932,109090.0,109080.0,1.17900035]
[1756170186375,0.00326932,109090.0,109080.0,0.62839982]
[1756170186587,0.00326932,109090.0,109080.0,0.63139982]
[1756170186790,0.00326932,109090.0,109080.0,1.18200035]
[1756170187006,0.00505044,109100.0,109090.0,0.20078388]
[1756170187238,0.00505044,109100.0,109090.0,1.00957871]
[1756170187535,1e-08,109130.0,109120.0,0.20073347]
[1756170187799,0.00729497,109150.0,109140.0,0.20069989]
[1756170187966,0.00729497,109150.0,109140.0,1.02932244]
[1756170188166,0.0139561,109160.0,109150.0,0.18323408]
[1756170188395,0.0170461,109160.0,109150.0,0.09146202]
[1756170188623,0.20227339,109160.0,109150.0,0.09146202]
[1756170188830,0.20241746,109160.0,109140.0,0.18325087]
[1756170189041,0.18326179,109140.0,109120.0,0.00925856]
[1756170189255,0.18326179,109140.0,109120.0,0.18328349]
[1756170189456,0.18325205,109140.0,109120.0,0.18328349]
[1756170189660,0.18635777,109130.0,109110.0,0.37662125]
[1756170189864,0.00309,109130.0,109120.0,0.18328445]
[1756170190064,0.00309,109130.0,109110.0,1.08264632]
[1756170190065,0.18635766,109130.0,109110.0,0.54121085]
[1756170190491,0.00309,109130.0,109120.0,0.18328445]
[1756170190698,0.18425087,109140.0,109120.0,0.18328445]
[1756170190912,0.18635766,109130.0,109120.0,0.03368832]
[1756170191155,0.00309,109130.0,109120.0,0.21697277]
[1756170191358,0.001,109140.0,109130.0,0.18326766]
[1756170191566,0.18734087,109140.0,109120.0,0.84279602]
[1756170191806,0.00409,109140.0,109130.0,0.37602766]
[1756170192020,0.00309,109140.0,109130.0,0.37602766]
[1756170192232,0.18323464,109150.0,109130.0,0.44284997]
[1756170192438,0.18634087,109140.0,109130.0,0.19276]
[1756170192673,0.00309,109140.0,109130.0,0.18326766]
[1756170192878,0.08771017,109160.0,109140.0,0.18325087]
[1756170193088,0.02291571,109160.0,109150.0,0.18323408]
[1756170193293,0.546133,109160.0,109150.0,0.18323408]
[1756170193497,0.54241746,109160.0,109150.0,0.18123408]
[1756170193698,0.35920017,109160.0,109150.0,0.18123408]
[1756170193917,0.18327263,109130.0,109110.0,0.24725963]
[1756170194131,0.19552801,109140.0,109120.0,0.37568445]
[1756170194768,0.19552801,109140.0,109130.0,0.18326766]
[1756170194966,0.0051,109140.0,109130.0,0.18326766]
[1756170195193,0.18327547,109150.0,109130.0,0.23916287]
[1756170195397,0.00572658,109140.0,109130.0,0.23916287]
[1756170195608,0.18636547,109150.0,109130.0,0.23916287]
[1756170195813,0.00309,109150.0,109140.0,0.18325087]
[1756170196020,0.53733425,109160.0,109150.0,0.18323408]
[1756170196248,0.18323408,109150.0,109140.0,0.1922]
[1756170196454,0.18833408,109150.0,109140.0,0.37545087]
[1756170196688,0.0051,109150.0,109140.0,0.37545087]
[1756170196842,0.01082606,109150.0,109140.0,0.37545087]
[1756170197050,0.19406014,109150.0,109140.0,0.18325087]
[1756170197271,0.18833408,109150.0,109130.0,0.27944033]
[1756170197485,0.00309,109140.0,109130.0,0.4326728]
[1756170197676,0.00309,109140.0,109130.0,0.04027746]
[1756170197677,0.18835087,109140.0,109130.0,0.04027746]
[1756170198049,0.18835087,109140.0,109130.0,0.18326766]
[1756170198254,0.18835087,109140.0,109120.0,0.39233347]
[1756170198521,0.18835087,109140.0,109120.0,0.46659549]
[1756170198667,0.18326766,109130.0,109120.0,0.25730647]
[1756170198950,0.18836766,109130.0,109120.0,0.37520445]
[1756170199166,0.18836766,109130.0,109120.0,0.41665394]
[1756170199556,0.0051,109130.0,109120.0,0.22473394]
[1756170199808,0.0051,109130.0,109120.0,0.41765394]
[1756170200078,0.71832408,109150.0,109130.0,0.18325479]
[1756170200344,0.34309,109150.0,109140.0,0.18325087]
[1756170200601,0.01410017,109160.0,109150.0,0.18323408]
[1756170200846,0.01410017,109160.0,109150.0,0.29214512]
[1756170201088,0.01410017,109160.0,109150.0,0.84274565]
[1756170201338,0.01410017,109160.0,109150.0,0.93419094]
[1756170201595,0.01410017,109160.0,109150.0,0.97493565]
[1756170201862,0.01410017,109160.0,109150.0,1.04823264]
[1756170203187,1e-08,109160.0,109150.0,1.04823264]
[1756170203424,1e-08,109160.0,109150.0,0.42433512]
[1756170203709,1e-08,109160.0,109150.0,1.16589565]
[1756170203956,1e-08,109160.0,109150.0,1.16605565]
[1756170204206,1e-08,109160.0,109150.0,0.98093565]
[1756170204454,1e-08,109160.0,109150.0,1.16597565]
[1756170205035,1e-08,109160.0,109150.0,0.42833512]
[1756170205406,1e-08,109160.0,109150.0,0.42433512]
[1756170205789,1e-08,109160.0,109150.0,1.16993565]
[1756170206118,1e-08,109160.0,109150.0,1.16969565]
[1756170206355,1e-08,109160.0,109150.0,0.42833512]
[1756170206617,1e-08,109160.0,109150.0,0.61905512]
[1756170206916,1e-08,109160.0,109150.0,0.61505512]
[1756170207151,1e-08,109160.0,109150.0,1.16765565]
[1756170207647,1e-08,109160.0,109150.0,1.16565565]
[1756170207822,1e-08,109160.0,109150.0,1.16765565]
[1756170208118,1e-08,109160.0,109150.0,1.16565565]
[1756170208352,1e-08,109160.0,109150.0,1.65565565]
[1756170208523,1e-08,109160.0,109150.0,1.65965565]
[1756170208725,1e-08,109160.0,109150.0,1.67228365]
[1756170210380,1e-08,109160.0,109150.0,1.65565565]
[1756170210596,1e-08,109160.0,109150.0,1.50469565]
[1756170210800,1e-08,109160.0,109150.0,0.42933512]
[1756170211001,0.00321001,109160.0,109150.0,0.5965661]
[1756170211216,0.00321001,109160.0,109150.0,0.50498408]
[1756170211423,0.00321001,109160.0,109150.0,0.51098408]
[1756170211812,0.00531001,109160.0,109150.0,0.51082408]
[1756170211956,0.00531001,109160.0,109150.0,0.5282731]
[1756170212160,0.00531001,109160.0,109150.0,0.50482408]
[1756170212582,0.00531001,109160.0,109150.0,0.5272731]
[1756170212789,0.00531001,109160.0,109150.0,0.7959731]
[1756170213399,1e-08,109160.0,109150.0,0.7959731]
[1756170213604,0.00531001,109160.0,109150.0,0.6015731]
[1756170213810,1e-08,109160.0,109150.0,0.67487009]
[1756170214010,1e-08,109160.0,109150.0,1.07439363]
[1756170214636,1e-08,109160.0,109150.0,1.16585565]
[1756170216626,1e-08,109160.0,109150.0,1.72715264]
[1756170217059,1e-08,109170.0,109160.0,0.54066631]
[1756170217234,1e-08,109170.0,109160.0,1.43070189]
[1756170217709,1e-08,109180.0,109170.0,0.54064953]
[1756170217906,0.06230673,109220.0,109200.0,0.18315018]
[1756170218171,0.00224396,109210.0,109200.0,0.3894392]
[1756170218446,0.00224396,109210.0,109200.0,0.44669736]
[1756170219145,0.00224396,109210.0,109200.0,0.48729553]
[1756170219766,0.00014396,109210.0,109200.0,0.48729553]
[1756170220400,0.00545396,109210.0,109200.0,0.48729553]
[1756170221240,0.00545396,109210.0,109200.0,0.24119737]
[1756170221460,0.18858737,109210.0,109200.0,0.04059817]
[1756170221666,0.18858737,109210.0,109200.0,0.22863817]
[1756170221906,0.18858737,109210.0,109200.0,0.18804]
[1756170222354,0.18858737,109210.0,109190.0,0.25362236]
[1756170222564,0.18749451,109200.0,109190.0,0.27107138]
[1756170222773,0.18846018,109200.0,109190.0,0.38843138]
[1756170223193,0.18846018,109200.0,109180.0,0.19231186]
[1756170223404,0.18846018,109200.0,109190.0,0.37092695]
[1756170223405,0.18525018,109200.0,109190.0,0.37092695]
[1756170223837,0.18316695,109190.0,109170.0,0.25364051]
[1756170224055,0.18320051,109170.0,109150.0,0.33613277]
[1756170224263,0.19234291,109180.0,109160.0,0.37093729]
[1756170224499,0.00323433,109170.0,109160.0,0.37093729]
[1756170224704,0.18643484,109170.0,109160.0,0.37093729]
[1756170224911,0.18851051,109170.0,109160.0,0.37093729]
[1756170225117,0.0021,109170.0,109160.0,0.45993503]
[1756170225329,0.18321729,109160.0,109150.0,0.04099235]
[1756170225542,0.18852729,109160.0,109150.0,0.41190643]
[1756170225756,0.00531,109160.0,109150.0,0.37091408]
[1756170225958,0.00644433,109160.0,109150.0,0.50285232]
[1756170226373,0.00323433,109160.0,109150.0,0.50285232]
[1756170226579,0.00113433,109160.0,109150.0,0.50285232]
[1756170226783,0.00113433,109160.0,109150.0,0.50685232]
[1756170226965,0.00323433,109160.0,109150.0,0.50285232]
[1756170227307,0.00323433,109160.0,109150.0,0.50585232]
[1756170227516,0.00113433,109160.0,109150.0,0.50585232]
[1756170227856,0.00113433,109160.0,109150.0,0.59855833]
[1756170228057,0.00321,109180.0,109170.0,0.18320051]
[1756170228294,0.20647158,109180.0,109170.0,0.18320051]
[1756170228457,0.02215352,109180.0,109170.0,0.37040051]
[1756170228661,0.01685207,109180.0,109170.0,0.37040051]
[1756170229239,0.01226179,109200.0,109190.0,0.18316695]
[1756170229495,0.01564008,109200.0,109190.0,0.37012695]
[1756170229712,0.19879026,109200.0,109190.0,0.37012695]
[1756170229919,0.21452439,109200.0,109190.0,0.37012695]
[1756170230348,0.01701242,109200.0,109190.0,0.3835327]
[1756170230770,0.01701242,109200.0,109190.0,0.37312695]
[1756170231222,0.01814675,109200.0,109190.0,0.37312695]
[1756170231865,0.01701242,109200.0,109190.0,1.03451062]
[1756170232105,0.00014396,109200.0,109190.0,1.03746062]
[1756170232938,0.00014396,109200.0,109190.0,0.48399799]
[1756170233192,0.00014396,109200.0,109190.0,1.10535518]
[1756170233403,0.00014396,109200.0,109190.0,0.55484255]
[1756170233633,0.00014396,109200.0,109190.0,1.10535518]
[1756170233866,0.00014396,109200.0,109190.0,1.17874518]
[1756170234283,0.00014396,109200.0,109190.0,1.17782518]
[1756170234710,0.00014396,109200.0,109190.0,1.17482518]
[1756170236645,0.00014396,109200.0,109190.0,1.17582518]
[1756170238345,0.01432671,109220.0,109210.0,0.20058243]
[1756170238549,0.01432671,109220.0,109210.0,0.41234871]
[1756170238752,0.01432671,109220.0,109210.0,0.20058243]
[1756170238963,0.01645671,109220.0,109210.0,0.38554243]
[1756170239376,0.01963671,109220.0,109210.0,0.38550243]
[1756170240201,0.001,109220.0,109210.0,0.42739215]
[1756170240517,0.001,109220.0,109210.0,0.42945215]
[1756170240730,0.001,109220.0,109210.0,1.16582209]
[1756170241360,0.02666778,109240.0,109230.0,0.18309988]
[1756170241570,0.02894172,109240.0,109230.0,0.36749988]
[1756170241782,0.02780739,109240.0,109230.0,0.36649988]
[1756170242003,0.21202483,109240.0,109220.0,0.18310231]
[1756170242216,0.2140705,109240.0,109230.0,0.18309988]
[1756170242644,0.02780739,109240.0,109230.0,0.18309988]
[1756170242848,0.02567739,109240.0,109230.0,0.21199578]
[1756170243058,0.02567739,109240.0,109230.0,0.84751682]
[1756170243271,0.02567739,109240.0,109230.0,0.38551621]
[1756170243802,0.02567739,109240.0,109230.0,0.38846621]
[1756170244008,0.02667739,109240.0,109230.0,0.38846621]
[1756170244218,0.02567739,109240.0,109230.0,0.38846621]
[1756170245910,0.02567739,109240.0,109230.0,0.9483648]
[1756170246960,0.01744902,109230.0,109200.0,0.01485604]
[1756170247170,0.18323626,109150.0,109140.0,0.00909917]
[1756170247381,0.18323626,109150.0,109120.0,0.36927351]
[1756170247587,0.18326766,109130.0,109120.0,0.18304]
[1756170247795,0.18326766,109130.0,109120.0,0.02007065]
[1756170247999,0.18326766,109130.0,109120.0,0.09146202]
[1756170248209,0.01681106,109130.0,109120.0,0.45786647]
[1756170248419,0.18328445,109120.0,109110.0,0.0582114]
[1756170248655,0.1924135,109140.0,109120.0,0.18376343]
[1756170248888,0.20844043,109140.0,109120.0,0.25720024]
[1756170249098,0.20844043,109140.0,109130.0,0.3685185]
[1756170249307,0.0167928,109140.0,109130.0,0.46269968]
[1756170249525,0.0167928,109140.0,109130.0,1.13403828]
[1756170249755,0.0167928,109140.0,109130.0,1.24293259]
[1756170249976,0.0167928,109140.0,109130.0,1.73293259]
[1756170250196,0.19234491,109180.0,109160.0,0.18321729]
[1756170250419,0.18320051,109170.0,109160.0,0.18321729]
[1756170250632,0.02518021,109170.0,109160.0,0.36605729]
[1756170250873,0.02518021,109170.0,109160.0,0.48647591]
[1756170251130,0.73393958,109210.0,109190.0,0.18316695]
[1756170251362,0.18428451,109200.0,109180.0,0.18317381]
[1756170251576,0.18428451,109200.0,109190.0,0.18268]
[1756170251577,0.20834091,109200.0,109190.0,0.18268]
[1756170251806,0.02519073,109200.0,109190.0,0.36584695]
[1756170252267,0.02519073,109200.0,109190.0,0.55020799]
[1756170252519,0.00839691,109200.0,109190.0,0.55020799]
[1756170252712,0.18309988,109230.0,109220.0,0.1831144]
[1756170252935,0.21040277,109230.0,109220.0,0.18264]
[1756170253138,0.76110907,109230.0,109220.0,0.18264]
[1756170253349,0.21040277,109230.0,109220.0,0.18264]
[1756170253584,0.21040277,109230.0,109220.0,0.18256]
[1756170253776,0.21040277,109230.0,109210.0,0.18313341]
[1756170253777,0.18311664,109220.0,109200.0,0.19228534]
[1756170254000,0.18311664,109220.0,109210.0,0.36569341]
[1756170254001,0.02519289,109220.0,109210.0,0.36569341]
[1756170254219,0.02844722,109220.0,109210.0,0.36569341]
[1756170254841,0.00113433,109220.0,109210.0,0.37070341]
[1756170255072,0.59304109,109240.0,109230.0,0.18309988]
[1756170255290,0.59529503,109240.0,109230.0,0.36549988]
[1756170255494,0.77837814,109240.0,109230.0,0.36549988]
[1756170255895,0.7615768,109240.0,109230.0,0.36549988]
[1756170256147,0.77838222,109240.0,109230.0,0.1822]
[1756170256520,0.04248281,109240.0,109230.0,0.36529988]
[1756170256727,0.04361714,109240.0,109230.0,0.40183015]
[1756170256943,0.04248281,109240.0,109230.0,0.37030988]
[1756170257149,0.02667739,109240.0,109230.0,0.47922092]
[1756170257362,0.02567739,109240.0,109230.0,0.57066621]
[1756170257572,0.02567739,109240.0,109230.0,0.56602511]
[1756170257776,0.02567739,109240.0,109230.0,0.56802511]
[1756170257992,0.02567739,109240.0,109230.0,0.6393221]
[1756170258199,0.02567739,109240.0,109230.0,1.1900284]
[1756170258610,0.02567739,109240.0,109230.0,1.5900284]
[1756170258846,0.02567739,109240.0,109230.0,1.53942489]
[1756170259261,0.02567739,109240.0,109230.0,1.94342489]
[1756170259483,0.02567739,109240.0,109230.0,1.39271859]
[1756170259700,0.02567739,109240.0,109230.0,1.2017632]
[1756170259947,0.02567739,109240.0,109230.0,1.43143118]
[1756170260182,0.02567739,109240.0,109230.0,1.97613748]
[1756170260388,0.02567739,109240.0,109230.0,1.25031118]
[1756170260595,0.02567739,109240.0,109230.0,1.43243118]
[1756170260807,0.02567739,109240.0,109230.0,1.42543118]
[1756170261021,0.02567739,109240.0,109230.0,1.24331118]
[1756170261227,0.02567739,109240.0,109230.0,1.24931118]
[1756170261439,0.11785173,109270.0,109250.0,0.18306636]
[1756170261645,0.02567636,109270.0,109260.0,0.3651696]
[1756170261852,0.02567636,109270.0,109260.0,0.1830496]
[1756170262059,0.02567636,109270.0,109260.0,0.3651696]
[1756170262689,0.21081921,109270.0,109260.0,0.3651696]
[1756170262915,0.19402143,109270.0,109260.0,0.3651696]
[1756170263123,0.19402143,109270.0,109260.0,0.20071605]
[1756170263327,0.19402143,109270.0,109260.0,0.01766645]
[1756170263530,0.19719143,109270.0,109260.0,0.19974645]
[1756170263929,0.21398505,109270.0,109260.0,0.19974645]
[1756170264153,0.76469135,109270.0,109260.0,0.18308]
[1756170264375,0.76469135,109270.0,109260.0,0.001]
[1756170264515,0.21398505,109270.0,109260.0,0.18308]
[1756170264728,0.76469135,109270.0,109260.0,0.001]
[1756170265329,1.35721135,109270.0,109260.0,0.001]
[1756170265537,0.18311664,109220.0,109210.0,0.07044]
[1756170265746,0.21041722,109220.0,109210.0,0.00096]
[1756170266356,0.18315018,109200.0,109190.0,0.0704]
[1756170266572,0.18315018,109200.0,109190.0,0.25356695]
[1756170266786,0.73383971,109210.0,109190.0,0.43812695]
[1756170266996,0.20831417,109210.0,109200.0,0.25644717]
[1756170267201,0.02518076,109210.0,109200.0,0.34790919]
[1756170267407,0.18311377,109250.0,109230.0,0.18309043]
[1756170267655,0.20829709,109250.0,109230.0,0.18448]
[1756170267887,0.20829709,109250.0,109240.0,0.25866863]
[1756170267888,0.02518332,109250.0,109240.0,0.25866863]
[1756170268096,0.02518332,109250.0,109240.0,0.4333778]
[1756170268300,0.02518332,109250.0,109240.0,0.6146178]
[1756170268488,0.02631765,109250.0,109240.0,0.4409401]
[1756170268658,0.02518332,109250.0,109240.0,0.55500114]
[1756170268859,0.01678888,109250.0,109240.0,0.55500114]
[1756170269068,0.01566106,109280.0,109270.0,0.18303285]
[1756170269267,0.01566106,109280.0,109270.0,0.36747285]
[1756170269268,0.04457791,109280.0,109270.0,0.36747285]
[1756170269673,0.04246791,109280.0,109270.0,0.36747285]
[1756170269950,0.04133358,109280.0,109270.0,0.36747285]
[1756170270693,0.04133358,109280.0,109270.0,0.37262285]
[1756170270878,0.04133358,109280.0,109270.0,0.39958919]
[1756170271702,0.04133358,109280.0,109270.0,0.39646919]
[1756170271939,0.04133358,109280.0,109270.0,0.39443919]
[1756170272196,0.04133358,109280.0,109270.0,0.36950285]
[1756170272894,0.03443911,109300.0,109290.0,0.20044837]
[1756170273108,0.03458298,109300.0,109290.0,1.12934123]
[1756170273320,0.01788748,109310.0,109300.0,0.20043163]
[1756170273523,0.01788748,109310.0,109300.0,0.29704365]
[1756170274373,0.01788748,109310.0,109300.0,0.37034064]
[1756170274577,0.01788748,109310.0,109300.0,0.99132324]
[1756170274784,0.01788748,109310.0,109300.0,0.44061694]
[1756170275831,0.01788748,109310.0,109300.0,0.44461694]
[1756170276447,0.01788748,109310.0,109300.0,0.78461694]
[1756170276655,1e-08,109320.0,109310.0,0.52296587]
[1756170276886,1e-08,109320.0,109310.0,0.9121122]
[1756170277497,1e-08,109320.0,109310.0,1.6128185]
[1756170277903,1e-08,109320.0,109310.0,1.62189404]
[1756170278115,1e-08,109320.0,109310.0,1.62165404]
[1756170278316,0.04156363,109350.0,109340.0,0.20036469]
[1756170278494,0.04156363,109350.0,109340.0,0.90546318]
[1756170278815,0.04334476,109360.0,109350.0,0.52289894]
[1756170279012,0.04334476,109360.0,109350.0,0.61436096]
[1756170279180,0.04334476,109360.0,109350.0,0.81999998]
[1756170279390,0.04334476,109360.0,109350.0,0.89761435]
[1756170279596,0.04334476,109360.0,109350.0,0.71457435]
[1756170279792,0.04334476,109360.0,109350.0,0.89757435]
[1756170280163,0.04334476,109360.0,109350.0,0.89857435]
[1756170280363,0.04334476,109360.0,109350.0,0.89757435]
[1756170280774,0.04334476,109360.0,109350.0,0.89437435]
[1756170280973,0.04334476,109360.0,109350.0,0.71145435]
[1756170281175,0.04334476,109360.0,109350.0,0.71457435]
[1756170281381,0.04334476,109360.0,109350.0,0.89709435]
[1756170281608,0.04334476,109360.0,109350.0,0.70030435]
[1756170281807,0.04334476,109360.0,109350.0,0.88578435]
[1756170282796,0.04334476,109360.0,109350.0,0.88570435]
[1756170283028,0.04334476,109360.0,109350.0,0.28268998]
[1756170283029,0.04545476,109360.0,109350.0,0.28268998]
[1756170283229,0.04334476,109360.0,109350.0,0.26727096]
[1756170283418,0.04545476,109360.0,109350.0,0.26724096]
[1756170283615,0.04545476,109360.0,109350.0,0.28468998]
[1756170283840,0.04545476,109360.0,109350.0,0.35793894]
[1756170284045,0.04334476,109360.0,109350.0,0.44940096]
[1756170284262,0.04334476,109360.0,109350.0,0.45455096]
[1756170284583,0.04334476,109360.0,109350.0,1.09600327]
[1756170284927,0.04334476,109360.0,109350.0,1.52544856]
[1756170286176,0.04334476,109360.0,109350.0,0.97474226]
[1756170286667,0.04334476,109360.0,109350.0,1.52544856]
[1756170286888,1e-08,109360.0,109350.0,1.52544856]
[1756170287118,1e-08,109360.0,109350.0,2.07544856]
[1756170287622,0.02274031,109370.0,109360.0,0.54033124]
[1756170287623,1e-08,109370.0,109360.0,0.54033124]
[1756170287861,1e-08,109370.0,109360.0,1.26214393]
[1756170288103,1e-08,109370.0,109360.0,1.26526393]
[1756170288304,1e-08,109370.0,109360.0,1.41526393]
[1756170288509,1e-08,109370.0,109360.0,1.85674604]
[1756170288937,0.02367615,109390.0,109380.0,0.5402978]
[1756170289194,0.02415536,109390.0,109380.0,1.45670775]
[1756170289418,0.04868816,109400.0,109380.0,1.45670775]
[1756170289653,0.05046929,109410.0,109400.0,1.22352165]
[1756170289893,0.05061302,109410.0,109400.0,1.49897367]
[1756170290101,0.05061302,109410.0,109400.0,1.59041896]
[1756170290330,0.02610257,109420.0,109410.0,0.52279864]